fUSD/lending_fUSD_20260630
["ID","MTS","AMOUNT","RATE_DAILY","PERIOD"]
[426716942,1782759048000,-993.97,0.000162,2]
[426716945,1782759048000,-500.0,0.00016436,2]
[426716947,1782759048000,-500.0,0.00016436,2]
[426716961,1782759048000,-184.08818197,0.00017348,2]
[426716944,1782759048000,-500.0,0.00016436,2]
[426716949,1782759048000,-1069.32,0.00016438,2]
[426716951,1782759048000,-234.0,0.00016438,2]
[426716954,1782759048000,-319.92072875,0.00016553,2]
[426716952,1782759048000,-540.31,0.00016438,2]
[426716953,1782759048000,-154.01,0.00016465,2]
[426716959,1782759048000,-234.0,0.0001726,2]
[426716955,1782759048000,-436.82,0.000166,2]
[426716958,1782759048000,-154.01,0.00016974,2]
[426716957,1782759048000,-958.17,0.00016932,2]
[426716960,1782759048000,-2242.71143572,0.00017267,2]
[426716956,1782759048000,-1037.24,0.00016931,2]
[426716946,1782759048000,-500.0,0.00016436,2]
[426716989,1782759048000,-312.0,0.0002,2]
[426716948,1782759048000,-586.29,0.00016438,2]
[426716992,1782759048000,-333.0,0.0002,2]
[426717021,1782759048000,-7245.98224618,0.000207,2]
[426717023,1782759048000,-151.0,0.00020791,2]
[426717025,1782759048000,-151.0,0.00020791,2]
[426717024,1782759048000,-151.0,0.00020791,2]
[426717026,1782759048000,-151.0,0.00020791,2]
[426717028,1782759048000,-151.0,0.00020791,2]
[426717027,1782759048000,-151.0,0.00020791,2]
[426717033,1782759048000,-151.0,0.00020791,2]
[426717031,1782759048000,-151.0,0.00020791,2]
[426717035,1782759048000,-151.0,0.00020791,2]
[426717032,1782759048000,-151.0,0.00020791,2]
[426717022,1782759048000,-384.17225189,0.000207,2]
[426717045,1782759048000,-1124.13289574,0.000209,2]
[426717030,1782759048000,-151.0,0.00020791,2]
[426717034,1782759048000,-151.0,0.00020791,2]
[426717036,1782759048000,-151.0,0.00020791,2]
[426717037,1782759048000,-151.0,0.00020791,2]
[426717039,1782759048000,-151.0,0.00020791,2]
[426717038,1782759048000,-151.0,0.00020791,2]
[426717041,1782759048000,-151.0,0.00020791,2]
[426717042,1782759048000,-151.0,0.00020791,2]
[426717043,1782759048000,-7245.98224618,0.000209,2]
[426717040,1782759048000,-151.0,0.00020791,2]
[426716991,1782759048000,-217.0,0.0002,2]
[426717029,1782759048000,-151.0,0.00020791,2]
[426717019,1782759048000,-1313.40017973,0.000206,2]
[426717044,1782759048000,-384.17225189,0.000209,2]
[426717018,1782759048000,-1124.13289574,0.000206,2]
[426716994,1782759048000,-497.0,0.0002,2]
[426716993,1782759048000,-158.0,0.0002,2]
[426716995,1782759048000,-462.0,0.0002,2]
[426716996,1782759048000,-303.0,0.0002,2]
[426716997,1782759048000,-1124.13289574,0.0002,2]
[426716998,1782759048000,-1313.40017973,0.0002,2]
[426716999,1782759048000,-218.9153543,0.0002,2]
[426717020,1782759048000,-218.9153543,0.000206,2]
[426717001,1782759048000,-16600.45,0.0002,2]
[426717002,1782759048000,-157.0,0.0002,2]
[426717005,1782759048000,-7245.98224618,0.000201,2]
[426717003,1782759048000,-771.0,0.0002,2]
[426717000,1782759048000,-976.0,0.0002,2]
[426717006,1782759048000,-384.17225189,0.000201,2]
[426717015,1782759048000,-7245.98224618,0.000205,2]
[426717004,1782759048000,-197.0,0.0002,2]
[426717014,1782759048000,-218.9153543,0.000204,2]
[426717012,1782759048000,-1124.13289574,0.000204,2]
[426717017,1782759048000,-319.92072875,0.00020522,2]
[426717016,1782759048000,-384.17225189,0.000205,2]
[426717011,1782759048000,-384.17225189,0.000203,2]
[426717009,1782759048000,-218.9153543,0.000202,2]
[426717010,1782759048000,-7245.98224618,0.000203,2]
[426717008,1782759048000,-1313.40017973,0.000202,2]
[426717007,1782759048000,-1124.13289574,0.000202,2]
[426717013,1782759048000,-1313.40017973,0.000204,2]
[426717081,1782759049000,-7245.98224618,0.000218,2]
[426717083,1782759049000,-1124.13289574,0.000219,2]
[426717084,1782759049000,-1313.40017973,0.000219,2]
[426717079,1782759049000,-1313.40017973,0.000217,2]
[426717076,1782759049000,-1101.76,0.00021567,2]
[426717080,1782759049000,-350.0,0.00021756,4]
[426717075,1782759049000,-1313.40017973,0.000215,2]
[426717077,1782759049000,-419.04784237,0.000216,2]
[426717073,1782759049000,-7245.98224618,0.000215,2]
[426717078,1782759049000,-1124.13289574,0.000217,2]
[426717085,1782759049000,-456.10089585,0.00021917,2]
[426717099,1782759049000,-217.0,0.00022,2]
[426717088,1782759049000,-500.0,0.00021917,2]
[426717089,1782759049000,-500.0,0.00021917,2]
[426717087,1782759049000,-500.0,0.00021917,2]
[426717090,1782759049000,-500.0,0.00021917,2]
[426717086,1782759049000,-500.0,0.00021917,2]
[426717092,1782759049000,-500.0,0.00021917,2]
[426717091,1782759049000,-500.0,0.00021917,2]
[426717093,1782759049000,-5000.0,0.00021918,2]
[426717094,1782759049000,-170.93,0.00021918,2]
[426717096,1782759049000,-264.0,0.00022,2]
[426717074,1782759049000,-1124.13289574,0.000215,2]
[426717082,1782759049000,-419.04784237,0.000219,2]
[426717071,1782759049000,-436.82,0.000213,2]
[426717059,1782759049000,-462.0,0.00021,2]
[426717070,1782759049000,-1313.40017973,0.000213,2]
[426717100,1782759049000,-333.0,0.00022,2]
[426717050,1782759049000,-10000.0,0.00021,2]
[426717048,1782759049000,-264.0,0.00021,2]
[426717049,1782759049000,-312.0,0.00021,2]
[426717047,1782759049000,-218.9153543,0.000209,2]
[426717046,1782759049000,-1313.40017973,0.000209,2]
[426717051,1782759049000,-15000.0,0.00021,2]
[426717052,1782759049000,-6111.0,0.00021,2]
[426717053,1782759049000,-9324.81735202,0.00021,2]
[426717055,1782759049000,-217.0,0.00021,2]
[426717054,1782759049000,-419.04784237,0.00021,2]
[426717072,1782759049000,-419.04784237,0.000214,2]
[426717058,1782759049000,-497.0,0.00021,2]
[426717063,1782759049000,-197.0,0.00021,2]
[426717057,1782759049000,-158.0,0.00021,2]
[426717061,1782759049000,-976.0,0.00021,2]
[426717060,1782759049000,-303.0,0.00021,2]
[426717062,1782759049000,-157.0,0.00021,2]
[426717064,1782759049000,-7245.98224618,0.000211,2]
[426717066,1782759049000,-1313.40017973,0.000211,2]
[426717065,1782759049000,-1124.13289574,0.000211,2]
[426717068,1782759049000,-7245.98224618,0.000213,2]
[426717067,1782759049000,-419.04784237,0.000212,2]
[426717069,1782759049000,-1124.13289574,0.000213,2]
[426717056,1782759049000,-333.0,0.00021,2]
[426717103,1782759049000,-462.0,0.00022,2]
[426717102,1782759049000,-497.0,0.00022,2]
[426717098,1782759049000,-312.0,0.00022,2]
[426717130,1782759049000,-159.16720066,0.00023629,2]
[426717131,1782759049000,-152.70281935,0.00023629,2]
[426717134,1782759049000,-174.31450985,0.00023629,2]
[426717132,1782759049000,-179.26203115,0.00023629,2]
[426717137,1782759049000,-206.42412447,0.00023629,2]
[426717133,1782759049000,-152.72231934,0.00023629,2]
[426717136,1782759049000,-162.82472767,0.00023629,2]
[426717135,1782759049000,-184.684164,0.00023629,2]
[426717138,1782759049000,-163.56782462,0.00023629,2]
[426717139,1782759049000,-159.04814732,0.00023629,2]
[426717145,1782759049000,-333.0,0.00024,2]
[426717129,1782759049000,-186.94275278,0.00023629,2]
[426717142,1782759049000,-264.0,0.00024,2]
[426717143,1782759049000,-312.0,0.00024,2]
[426717147,1782759049000,-497.0,0.00024,2]
[426717144,1782759049000,-217.0,0.00024,2]
[426717141,1782759049000,-152.0,0.00023692,3]
[426717148,1782759049000,-462.0,0.00024,2]
[426717149,1782759049000,-303.0,0.00024,2]
[426717151,1782759049000,-197.0,0.00024,2]
[426717153,1782759049000,-7929.91,0.00024174,2]
[426717152,1782759049000,-500.0,0.00024173,2]
[426717150,1782759049000,-976.0,0.00024,2]
[426717097,1782759049000,-7245.98224618,0.00022,2]
[426717146,1782759049000,-170.0,0.00024,2]
[426717125,1782759049000,-976.0,0.00023,2]
[426717140,1782759049000,-166.00726841,0.00023629,2]
[426717124,1782759049000,-303.0,0.00023,2]
[426717127,1782759049000,-172.71182229,0.00023625,2]
[426717095,1782759049000,-2242.71143572,0.00021952,2]
[426717104,1782759049000,-303.0,0.00022,2]
[426717106,1782759049000,-3384.03,0.00022,2]
[426717105,1782759049000,-976.0,0.00022,2]
[426717107,1782759049000,-166.0,0.00022,2]
[426717108,1782759049000,-197.0,0.00022,2]
[426717111,1782759049000,-170.22403167,0.00022345,2]
[426717109,1782759049000,-213.78027453,0.00022345,2]
[426717110,1782759049000,-150.64535567,0.00022345,2]
[426717114,1782759049000,-166.95,0.00022493,2]
[426717112,1782759049000,-2053.2372397,0.00022424,2]
[426717101,1782759049000,-158.0,0.00022,2]
[426717120,1782759049000,-333.0,0.00023,2]
[426717113,1782759049000,-714.08,0.00022466,2]
[426717128,1782759049000,-155.98454708,0.00023629,2]
[426717126,1782759049000,-197.0,0.00023,2]
[426717123,1782759049000,-462.0,0.00023,2]
[426717122,1782759049000,-497.0,0.00023,2]
[426717121,1782759049000,-158.0,0.00023,2]
[426717117,1782759049000,-264.0,0.00023,2]
[426717118,1782759049000,-312.0,0.00023,2]
[426717116,1782759049000,-200.0,0.00022816,2]
[426717115,1782759049000,-502.0,0.00022575,2]
[426717119,1782759049000,-217.0,0.00023,2]
[426717194,1782759050000,-497.0,0.00025,2]
[426717186,1782759050000,-150.78780082,0.00024886,2]
[426717190,1782759050000,-282.59292995,0.00025,2]
[426717192,1782759050000,-233.0,0.00025,2]
[426717191,1782759050000,-331.0,0.00025,2]
[426717178,1782759050000,-305.44463868,0.00024886,2]
[426717189,1782759050000,-151.83365069,0.00024967,2]
[426717187,1782759050000,-332.01453681,0.00024886,2]
[426717185,1782759050000,-327.13564924,0.00024886,2]
[426717193,1782759050000,-347.0,0.00025,2]
[426717184,1782759050000,-232.69334876,0.00024886,2]
[426717188,1782759050000,-350.0,0.00024925,6]
[426717195,1782759050000,-478.52015423,0.00025,2]
[426717204,1782759050000,-505.53,0.00025675,7]
[426717200,1782759050000,-155.3,0.0002532,7]
[426717201,1782759050000,-152.0,0.00025451,4]
[426717199,1782759050000,-155.32,0.0002532,7]
[426717197,1782759050000,-985.0,0.00025,2]
[426717202,1782759050000,-151.83365069,0.00025527,2]
[426717205,1782759050000,-2053.2372397,0.00025705,2]
[426717203,1782759050000,-500.0,0.00025675,7]
[426717198,1782759050000,-197.0,0.00025,2]
[426717206,1782759050000,-245.75044195,0.00025719,2]
[426717207,1782759050000,-265.37158626,0.00025719,2]
[426717211,1782759050000,-347.55088465,0.00025724,2]
[426717208,1782759050000,-326.14548868,0.00025719,2]
[426717196,1782759050000,-313.18545398,0.00025,2]
[426717181,1782759050000,-325.64945534,0.00024886,2]
[426717157,1782759050000,-2242.71143572,0.00024294,2]
[426717183,1782759050000,-412.84824895,0.00024886,2]
[426717213,1782759050000,-165.26168974,0.00025724,2]
[426717155,1782759050000,-47464.75,0.00024174,2]
[426717158,1782759050000,-319.92072875,0.00024492,2]
[426717159,1782759050000,-170.93,0.00024658,8]
[426717154,1782759050000,-2089.8,0.00024174,2]
[426717156,1782759050000,-387.64379331,0.00024294,2]
[426717161,1782759050000,-194.78,0.00024658,2]
[426717160,1782759050000,-1000.0,0.00024658,2]
[426717163,1782759050000,-155.3,0.00024658,2]
[426717162,1782759050000,-155.32,0.00024658,2]
[426717171,1782759050000,-373.88550555,0.00024886,2]
[426717166,1782759050000,-156.65713192,0.00024886,2]
[426717182,1782759050000,-216.70360018,0.00024886,2]
[426717165,1782759050000,-163.07274434,0.00024881,2]
[426717170,1782759050000,-311.96909416,0.00024886,2]
[426717167,1782759050000,-248.67869485,0.00024886,2]
[426717168,1782759050000,-180.31868655,0.00024886,2]
[426717172,1782759050000,-318.33440131,0.00024886,2]
[426717169,1782759050000,-236.43654848,0.00024886,2]
[426717173,1782759050000,-231.71516704,0.00024886,2]
[426717175,1782759050000,-223.3578235,0.00024886,2]
[426717176,1782759050000,-305.4056387,0.00024886,2]
[426717177,1782759050000,-358.5240623,0.00024886,2]
[426717174,1782759050000,-153.30095341,0.00024886,2]
[426717179,1782759050000,-348.62901971,0.00024886,2]
[426717180,1782759050000,-369.368328,0.00024886,2]
[426717164,1782759050000,-922.33767072,0.00024778,7]
[426717210,1782759050000,-289.97705868,0.00025724,2]
[426717270,1782759050000,-469.97139577,0.00026282,2]
[426717214,1782759050000,-259.82879946,0.00025724,2]
[426717246,1782759050000,-222.03500896,0.00025724,2]
[426717244,1782759050000,-465.38669751,0.00025724,2]
[426717243,1782759050000,-619.27237342,0.00025724,2]
[426717253,1782759050000,-150.0,0.00026069,5]
[426717248,1782759050000,-301.57560165,0.00025724,2]
[426717251,1782759050000,-155.32,0.00025982,30]
[426717247,1782759050000,-209.43339595,0.00025724,2]
[426717249,1782759050000,-498.02180522,0.00025724,2]
[426717250,1782759050000,-205.81969855,0.00025724,2]
[426717252,1782759050000,-155.3,0.00025982,30]
[426717254,1782759050000,-151.83365069,0.00026087,2]
[426717255,1782759050000,-1500.0,0.00026094,2]
[426717245,1782759050000,-490.70347385,0.00025724,2]
[426717258,1782759050000,-591.35807271,0.00026282,2]
[426717256,1782759050000,-1500.0,0.00026094,2]
[426717262,1782759050000,-578.15416843,0.00026282,2]
[426717261,1782759050000,-521.32632697,0.00026282,2]
[426717259,1782759050000,-178.93603588,0.00026282,2]
[426717263,1782759050000,-270.68337984,0.00026282,2]
[426717265,1782759050000,-287.75639426,0.00026282,2]
[426717260,1782759050000,-579.95411737,0.00026282,2]
[426717215,1782759050000,-313.31426385,0.00025724,2]
[426717266,1782759050000,-202.1636313,0.00026282,2]
[426717269,1782759050000,-519.65759891,0.00026282,2]
[426717267,1782759050000,-330.52337948,0.00026282,2]
[426717268,1782759050000,-229.80872473,0.00026282,2]
[426717257,1782759050000,-489.21823302,0.00026278,2]
[426717242,1782759050000,-433.40720036,0.00025724,2]
[426717264,1782759050000,-208.036199,0.00026282,2]
[426717241,1782759050000,-488.474183,0.00025724,2]
[426717240,1782759050000,-167.98551001,0.00025724,2]
[426717209,1782759050000,-295.67903636,0.00025724,2]
[426717217,1782759050000,-360.63737311,0.00025724,2]
[426717216,1782759050000,-497.3573897,0.00025724,2]
[426717218,1782759050000,-472.87309696,0.00025724,2]
[426717220,1782759050000,-331.0060264,0.00025724,2]
[426717219,1782759050000,-224.71680229,0.00025724,2]
[426717221,1782759050000,-221.66217933,0.00025724,2]
[426717222,1782759050000,-467.95364124,0.00025724,2]
[426717223,1782759050000,-560.82825833,0.00025724,2]
[426717224,1782759050000,-463.43033408,0.00025724,2]
[426717229,1782759050000,-217.29006367,0.00025724,2]
[426717225,1782759050000,-477.50160197,0.00025724,2]
[426717212,1782759050000,-289.07708421,0.00025724,2]
[426717227,1782759050000,-306.60190683,0.00025724,2]
[426717228,1782759050000,-151.34651757,0.00025724,2]
[426717235,1782759050000,-458.16695802,0.00025724,2]
[426717239,1782759050000,-554.052492,0.00025724,2]
[426717237,1782759050000,-195.18022612,0.00025724,2]
[426717234,1782759050000,-537.78609345,0.00025724,2]
[426717238,1782759050000,-522.94352956,0.00025724,2]
[426717232,1782759050000,-446.715647,0.00025724,2]
[426717231,1782759050000,-161.84974012,0.00025724,2]
[426717230,1782759050000,-219.00147766,0.00025724,2]
[426717226,1782759050000,-227.12887414,0.00025724,2]
[426717233,1782759050000,-458.10845805,0.00025724,2]
[426717236,1782759050000,-276.52380831,0.00025724,2]
[426717291,1782759051000,-302.69303515,0.00026282,2]
[426717305,1782759051000,-269.69595104,0.00026282,2]
[426717298,1782759051000,-165.81969986,0.00026282,2]
[426717299,1782759051000,-208.93299555,0.00026282,2]
[426717297,1782759051000,-670.0734705,0.00026282,2]
[426717295,1782759051000,-323.69948023,0.00026282,2]
[426717302,1782759051000,-717.0481246,0.00026282,2]
[426717303,1782759051000,-394.25687646,0.00026282,2]
[426717309,1782759051000,-166.72601345,0.00026282,2]
[426717313,1782759051000,-317.37261329,0.00026282,2]
[426717311,1782759051000,-302.41819783,0.00026282,2]
[426717306,1782759051000,-419.73813405,0.00026282,2]
[426717308,1782759051000,-225.96549144,0.00026282,2]
[426717304,1782759051000,-167.48709581,0.00026282,2]
[426717310,1782759051000,-553.04761663,0.00026282,2]
[426717312,1782759051000,-353.66898749,0.00026282,2]
[426717314,1782759051000,-390.36045224,0.00026282,2]
[426717315,1782759051000,-259.96433623,0.00026282,2]
[426717317,1782759051000,-610.88927736,0.00026282,2]
[426717301,1782759051000,-610.8112774,0.00026282,2]
[426717307,1782759051000,-530.74317253,0.00026282,2]
[426717300,1782759051000,-200.06265244,0.00026282,2]
[426717281,1782759051000,-339.5826762,0.00026282,2]
[426717292,1782759051000,-438.00295533,0.00026282,2]
[426717319,1782759051000,-164.36863685,0.00026282,2]
[426717276,1782759051000,-449.43360457,0.00026282,2]
[426717271,1782759051000,-746.03608455,0.00026282,2]
[426717274,1782759051000,-284.04385911,0.00026282,2]
[426717272,1782759051000,-540.95605966,0.00026282,2]
[426717275,1782759051000,-342.91394514,0.00026282,2]
[426717273,1782759051000,-709.30964544,0.00026282,2]
[426717277,1782759051000,-400.80064806,0.00026282,2]
[426717289,1782759051000,-459.90286024,0.00026282,2]
[426717279,1782759051000,-418.34199306,0.00026282,2]
[426717280,1782759051000,-394.21462644,0.00026282,2]
[426717282,1782759051000,-747.7710111,0.00026282,2]
[426717278,1782759051000,-443.32435866,0.00026282,2]
[426717285,1782759051000,-419.01647015,0.00026282,2]
[426717283,1782759051000,-346.87701195,0.00026282,2]
[426717284,1782759051000,-390.08311853,0.00026282,2]
[426717287,1782759051000,-454.25774827,0.00026282,2]
[426717286,1782759051000,-695.14550112,0.00026282,2]
[426717288,1782759051000,-636.66880262,0.00026282,2]
[426717290,1782759051000,-434.58012734,0.00026282,2]
[426717293,1782759051000,-247.67919306,0.00026282,2]
[426717294,1782759051000,-312.38506338,0.00026282,2]
[426717318,1782759051000,-206.40305492,0.00026282,2]
[426717296,1782759051000,-411.9365178,0.00026282,2]
[426717316,1782759051000,-738.736656,0.00026282,2]
[426717348,1782759051000,-923.42081999,0.00026841,2]
[426717346,1782759051000,-763.51409676,0.00026841,2]
[426717342,1782759051000,-151.83365069,0.00026647,2]
[426717349,1782759051000,-763.6115967,0.00026841,2]
[426717355,1782759051000,-151.83365069,0.00027207,2]
[426717351,1782759051000,-871.57254927,0.00026841,2]
[426717356,1782759051000,-152.0,0.00027209,5]
[426717353,1782759051000,-765.50918406,0.00026841,2]
[426717357,1782759051000,-155.32,0.00027307,7]
[426717350,1782759051000,-817.83912309,0.00026841,2]
[426717352,1782759051000,-830.03634204,0.00026841,2]
[426717354,1782759051000,-200.0,0.00027145,2]
[426717358,1782759051000,-155.3,0.00027307,7]
[426717361,1782759051000,-3098.76,0.00027397,2]
[426717360,1782759051000,-1026.86,0.00027397,2]
[426717364,1782759051000,-3032.96,0.00027397,10]
[426717359,1782759051000,-1500.0,0.00027397,2]
[426717363,1782759051000,-3639.55,0.00027397,10]
[426717365,1782759051000,-194.78,0.00027397,2]
[426717362,1782759051000,-1476.29,0.00027397,2]
[426717366,1782759051000,-2527.47,0.00027397,10]
[426717347,1782759051000,-896.31015575,0.00026841,2]
[426717345,1782759051000,-795.83600328,0.00026841,2]
[426717324,1782759051000,-650.11080054,0.00026282,2]
[426717344,1782759051000,-2000.0,0.00026771,7]
[426717367,1782759051000,-2106.22,0.00027397,10]
[426717321,1782759051000,-335.97102001,0.00026282,2]
[426717320,1782759051000,-426.00662091,0.00026282,2]
[426717323,1782759051000,-513.12089855,0.00026282,2]
[426717326,1782759051000,-654.27129847,0.00026282,2]
[426717325,1782759051000,-438.29532393,0.00026282,2]
[426717327,1782759051000,-418.86679189,0.00026282,2]
[426717330,1782759051000,-636.1925893,0.00026282,2]
[426717328,1782759051000,-155.49693022,0.00026282,2]
[426717329,1782759051000,-174.19192964,0.00026282,2]
[426717332,1782759051000,-452.36340247,0.00026282,2]
[426717322,1782759051000,-651.29891067,0.00026282,2]
[426717331,1782759051000,-403.49736433,0.00026282,2]
[426717333,1782759051000,-281.08830519,0.00026282,2]
[426717335,1782759051000,-230.79071999,0.00026282,2]
[426717337,1782759051000,-612.40734725,0.00026282,2]
[426717338,1782759051000,-411.63939711,0.00026282,2]
[426717340,1782759051000,-155.32,0.00026644,2]
[426717339,1782759051000,-2242.71143572,0.00026636,2]
[426717336,1782759051000,-664.02907363,0.00026282,2]
[426717341,1782759051000,-155.3,0.00026644,2]
[426717343,1782759051000,-436.82,0.000267,7]
[426717334,1782759051000,-697.25803942,0.00026282,2]
[426717377,1782759052000,-1327.21,0.000274,7]
[426717383,1782759052000,-955.00320394,0.00027679,2]
[426717387,1782759052000,-981.40694771,0.00027679,2]
[426717385,1782759052000,-1075.5721869,0.00027679,2]
[426717384,1782759052000,-916.21691611,0.00027679,2]
[426717386,1782759052000,-916.33391604,0.00027679,2]
[426717381,1782759052000,-500.0,0.000275,7]
[426717382,1782759052000,-350.0,0.00027632,9]
[426717379,1782759052000,-2000.0,0.000274,2]
[426717374,1782759052000,-709.36687398,0.00027397,2]
[426717375,1782759052000,-532.02515548,0.00027397,2]
[426717376,1782759052000,-936.71,0.000274,7]
[426717372,1782759052000,-177.34171849,0.00027397,2]
[426717373,1782759052000,-354.68343699,0.00027397,2]
[426717371,1782759052000,-548.90028963,0.00027397,2]
[426717370,1782759052000,-274.45014482,0.00027397,2]
[426717369,1782759052000,-311.8727815,0.00027397,2]
[426717368,1782759052000,-155.93639075,0.00027397,2]
[426717388,1782759052000,-1045.88705913,0.00027679,2]
[426717378,1782759052000,-1427.82,0.000274,7]
[426717389,1782759052000,-151.83365069,0.00027767,2]
[426717380,1782759052000,-161.19607867,0.000274,2]
[426717393,1782759052000,-170.22403167,0.00028302,2]
[426717390,1782759052000,-2076.0,0.000278,2]
[426717411,1782759052000,-16320.38528204,0.00028535,2]
[426717410,1782759052000,-245840.25123451,0.00028535,2]
[426717409,1782759052000,820.61614081,0.00012483,2]
[426717408,1782759052000,-925.36914262,0.00028535,2]
[426717406,1782759052000,-759.23253608,0.00028535,2]
[426717407,1782759052000,-30771.10118,0.00028535,2]
[426717404,1782759052000,-302.0,0.00028535,2]
[426717405,1782759052000,-773.0,0.00028535,2]
[426717403,1782759052000,-271644.22666173,0.00028535,2]
[426717392,1782759052000,-155.3,0.00027969,30]
[426717402,1782759052000,-500.0,0.00028534,2]
[426717391,1782759052000,-155.32,0.00027969,30]
[426717395,1782759052000,-1327.21,0.000284,7]
[426717394,1782759052000,-151.83365069,0.00028327,2]
[426717400,1782759052000,-1427.82,0.000285,7]
[426717401,1782759052000,-500.0,0.00028534,2]
[426717398,1782759052000,-319.92072875,0.00028461,2]
[426717399,1782759052000,-936.71,0.000285,7]
[426717397,1782759052000,-222.8282914,0.00028435,2]
[426717396,1782759052000,-2000.0,0.00028424,7]
[426717413,1782759053000,-1205.25976,0.00028535,2]
[426717412,1782759053000,389.02,0.00014973,2]
[426717415,1782759055000,596.0,0.00028535,120]
[426717414,1782759055000,151.0,0.00012581,2]
[426717416,1782759056000,151.0,0.00012581,2]
[426717417,1782759059000,2500.0,0.00012583,2]
[426717419,1782759062000,500.0,0.00037241,60]
[426717418,1782759062000,500.0,0.00037241,60]
[426717421,1782759062000,192.9801573,0.0001258,2]
[426717422,1782759062000,500.0,0.00037241,60]
[426717420,1782759062000,500.0,0.0001258,2]
[426717424,1782759063000,500.0,0.00037241,60]
[426717423,1782759063000,500.0,0.00037241,60]
[426717427,1782759070000,173.98443385,0.00012684,2]
[426717426,1782759070000,150.0,0.00012684,2]
[426717425,1782759070000,500.0,0.00012684,2]
[426717429,1782759104000,198.11101713,0.00037241,30]
[426717428,1782759104000,198.11101713,0.00037241,30]
[426717432,1782759105000,198.11101713,0.00037241,30]
[426717431,1782759105000,198.11101713,0.00037241,30]
[426717430,1782759105000,198.11101713,0.00037241,30]
[426717434,1782759106000,198.11101713,0.00037241,30]
[426717433,1782759106000,198.11101713,0.00037241,30]
[426717435,1782759108000,198.11101713,0.00037241,30]
[426717437,1782759108000,198.11101713,0.00037241,30]
[426717436,1782759108000,198.11101713,0.00037241,30]
[426717438,1782759109000,198.11101713,0.00037241,30]
[426717439,1782759110000,198.11101713,0.00037241,30]
[426717440,1782759111000,198.11101713,0.00037241,30]
[426717441,1782759112000,198.11101713,0.00037241,30]
[426717443,1782759113000,198.11101713,0.00037241,30]
[426717442,1782759113000,198.11101713,0.00037241,30]
[426717444,1782759114000,197.11101713,0.00037241,30]
[426717445,1782759145000,-152.0,0.0001258,2]
[426717446,1782759145000,-150.0,0.0001258,2]
[426717447,1782759145000,-151.0,0.0001258,2]
[426717450,1782759146000,-1795.6499355,0.00012583,2]
[426717449,1782759146000,-485.3500645,0.0001258,2]
[426717448,1782759146000,-150.0,0.0001258,2]
[426717452,1782759170000,275.83593988,0.00011782,2]
[426717451,1782759170000,410.69644178,0.00011782,2]
[426717453,1782759179000,315.81,0.00011951,2]
[426717456,1782759181000,-315.81,0.00012371,2]
[426717455,1782759181000,-315.81,0.00012231,2]
[426717454,1782759181000,-315.81,0.00012091,2]
[426717457,1782759181000,-10834.48377041,0.00012482,2]
[426717461,1782759181000,-137146.12226465,0.00012582,2]
[426717459,1782759181000,-151.0,0.0001258,2]
[426717458,1782759181000,-769.96396494,0.00012482,2]
[426717460,1782759181000,-151.0,0.00012581,2]
[426717478,1782759454000,1100.86660346,0.0001,2]
[426717480,1782759456000,48144.95636267,0.00037241,30]
[426717481,1782759465000,286.40789184,0.00037241,120]
[426717482,1782759510000,171.82,9.559e-05,2]
[426717483,1782759552000,166.4,0.00011911,2]
[426717484,1782759604000,-150.0,0.00012135,2]
[426717487,1782759604000,-419.59395906,0.00012135,2]
[426717485,1782759604000,-500.0,0.00012135,2]
[426717490,1782759604000,-261.11926037,0.00012231,2]
[426717489,1782759604000,-150.0,0.00012183,2]